[Event "Israel-ch Youth U8-18 2024"]
[Site "Kfar Saba"]
[Date "2024.04.21"]
[Round "7.5"]
[White "Leib, Yoni"]
[Black "Uritsky, Yonathan"]
[Result "1/2-1/2"]
[ECO "A49"]
[WhiteElo "1972"]
[BlackElo "2231"]
[Annotator "TA"]
[PlyCount "104"]
[EventDate "2024.04.10"]
[EventType "swiss"]
[EventCountry "ISR"]
[SourceTitle "playchess.com"]
[Source "ChessBase"]
[SourceQuality "1"]
[TimeControl "5400+30"]

{[%evp 10,104,35,14,24,19,12,11,27,25,20,42,35,15,4,0,9,0,0,2,10,12,12,0,44,0,0,-55,-66,-44,-62,-64,-64,-54,0,0,109,106,104,110,110,110,112,111,91,93,227,147,167,160,162,168,167,144,135,44,251,243,233,226,139,75,75,75,75,75,75,0,75,0,75,22,25,25,25,25,73,73,73,73,80,80,80,80,5041,0,0,0,0,0,0,0,0,0,0,0,0]} 1. Nf3 {[%emt 0:00:35]} Nf6 {[%emt 0:00:05]} 2. b3 {[%emt 0:00:09]} g6 {[%emt 0:00:06]} 3. g3 {[%emt 0:00:11]} Bg7 {[%emt 0:00:07]} 4. Bb2 {[%emt 0:00:10]} d6 {[%emt 0:00:06]} 5. d4 {[%emt 0:00:15]} c5 {[%emt 0:00:05]} 6. Bg2 {[%emt 0:01:11]} cxd4 {[%emt 0:00:02]} 7. Nxd4 {[%emt 0:01:15]} h5 {[%emt 0:00:02]} 8. Nf3 {[%emt 0:07:41]} d5 {[%emt 0:07:45]} 9. c4 {[%emt 0:07:59]} O-O {[%emt 0:05:16]} 10. cxd5 {[%emt 0:01:50]} Qxd5 {[%emt 0:02:05]} 11. Qxd5 {[%emt 0:01:37]} Nxd5 {[%emt 0:00:06]} 12. Bxg7 {[%emt 0:00:33]} Kxg7 {[%emt 0:00:02]} 13. O-O {[%emt 0:02:01]} Nc6 {[%emt 0:02:58]} 14. Rd1 {[%emt 0:02:10]} Be6 {[%emt 0:06:58]} 15. Ng5 {[%emt 0:03:38]} Rfd8 {[%emt 0:16:10]} 16. Bxd5 {[%emt 0:13:45]} Nb4 {[%emt 0:02:53]} 17. Nc3 {[%emt 0:04:16]} Bxd5 {[%emt 0:03:11]} 18. a3 {[%emt 0:11:03]} (18. Nxd5 $11 Nxd5 19. Rac1) 18... Nc2 $15 {[%emt 0:00:37]} 19. Ra2 {[%emt 0:00:02][%cal Ba1a2,Ba2b2,Bb2b3][%mdl 32]} Bxb3 {[%emt 0:00:20]} 20. Rxd8 {[%emt 0:00:06]} Rxd8 {[%emt 0:00:03]} 21. Rb2 {[%emt 0:40:33]} Nd4 {[%emt 0:00:26]} (21... Na1 $1 $15 22. Rb1 Rc8) 22. e3 $1 $11 {[%emt 0:00:00]} Rc8 {[%emt 0:00:43]} (22... Ne6 $1 $11 23. Rxb3 Nxg5 24. Rxb7 Rc8) 23. Nge4 $1 $16 {[%emt 0:00:00]} Nf3+ {[%emt 0:07:29] [#]} 24. Kg2 $1 {[%emt 0:00:00]} f5 {[%emt 0:09:33]} (24... Ne1+ $2 25. Kf1 Nf3 26. Rxb3 $18) 25. Rxb3 {[%emt 0:00:00]} fxe4 {[%emt 0:00:05]} 26. Nxe4 {[%emt 0:00:00][%mdl 4096] Endgame. KRN-KRN} Ne1+ {[%emt 0:02:41]} 27. Kf1 {[%emt 0:00:00]} Rc4 {[%emt 0:01:12]} (27... Nf3 $16 {was worth a try.}) 28. Kxe1 {[%emt 0:00:00]} Rxe4 {[%emt 0:00:04]} 29. Rxb7 $18 {[%emt 0:00:00] KR-KR} Ra4 {[%emt 0:02:42][%cal Og7f6]} 30. Rxe7+ {[%emt 0:00:00]} Kf6 {[%emt 0:00:01]} 31. Rc7 {[%emt 0:00:00]} Rxa3 {[%emt 0:00:09]} 32. Ke2 {[%emt 0:00:00] White is more active.} (32. Rc6+ $16 Kf7 33. h4) 32... a5 $2 {[%emt 0:00:24]} (32... Ra2+ $14 33. Kf1 g5) 33. Kf3 {[%emt 0:00:00]} a4 {[%emt 0:01:57]} 34. Rc6+ {[%emt 0:00:00]} Kf5 {[%emt 0:02:20]} 35. h4 {[%emt 0:00:00]} ({White should try} 35. Ra6) 35... Rb3 $16 {[%emt 0:00:58]} 36. Ra6 {[%emt 0:00:00]} a3 {[%emt 0:00:02]} 37. Ra5+ {[%emt 0:00:00]} Kf6 {[%emt 0:00:02]} 38. Ra6+ {[%emt 0:00:00]} Kf5 $1 {[%emt 0:00:13]} 39. Ra5+ {[%emt 0:00:00]} Kf6 $1 {[%emt 0:00:06]} 40. g4 {[%emt 0:00:00]} ({White should play} 40. Kf4 $16 {Black must now prevent e4.} Rb2 41. Rxa3 Rxf2+ 42. Ke4) 40... hxg4+ $11 {[%emt 0:00:49]} 41. Kxg4 {[%emt 0:00:00] Hoping for e4.} Rb2 {[%emt 0:00:56]} 42. Ra6+ {[%emt 0:00:00]} Ke5 {[%emt 0:02:37]} (42... Kf7 $11) 43. f4+ $16 {[%emt 0:00:00]} ({Reject} 43. Rxa3 Rxf2 44. Ra5+ Kf6 $11) 43... Ke4 {[%emt 0:00:31] [#]} 44. Ra4+ $1 {[%emt 0:00:00]} ({But not} 44. Rxa3 Rg2+ 45. Kh3 Rg1 $11) 44... Kxe3 {[%emt 0:00:25]} 45. Rxa3+ {[%emt 0:00:00]} Ke4 {[%emt 0:00:05]} 46. Ra4+ {[%emt 0:00:00]} Ke3 $2 {[%emt 0:00:19][%mdl 8192]} (46... Kd5 $16) 47. Kg5 $2 {[%emt 0:00:00]} ({White must play} 47. h5 $18 gxh5+ 48. Kxh5) 47... Rg2+ $11 {[%emt 0:00:18] The position is equal.} 48. Kh6 {[%emt 0:00:00] And now h5 would win.} (48. Kf6 $5) 48... Rg4 {[%emt 0:00:24][%csl LRf4,LRh4]} 49. Ra3+ {[%emt 0:00:00]} Kxf4 {[%emt 0:00:14]} 50. Ra4+ {[%emt 0:00:00]} Kg3 {[%emt 0:00:13]} 51. Rxg4+ {[%emt 0:00:00]} Kxg4 {[%emt 0:00:04]} 52. Kxg6 {[%emt 0:00:00] White threatens h5 and mate.} Kxh4 {[%emt 0:01:21] Weighted Error Value: White=0.22 (precise) /Black=0.24 (precise) .  Loses game:     	---       	Black=2      Missed win:     	White=1     	---        Mistake:       	White=4     	Black=4      Inaccurate:     	White=2     	Black=1      OK:         	White=13    	Black=13     Best:        	White=6     	Black=12     Strong:       	White=4     	Black=2} 1/2-1/2

[Event "Israel-ch Youth U8-18 2024"]
[Site "Kfar Saba"]
[Date "2024.04.21"]
[Round "7.6"]
[White "Ribstein, Orel"]
[Black "Ostrovsky Berman, Noam"]
[Result "0-1"]
[ECO "D87"]
[WhiteElo "2020"]
[BlackElo "1990"]
[Annotator "TA"]
[PlyCount "90"]
[EventDate "2024.04.10"]
[EventType "swiss"]
[EventCountry "ISR"]
[SourceTitle "playchess.com"]
[Source "ChessBase"]
[SourceQuality "1"]
[TimeControl "5400+30"]

{[%evp 23,90,20,27,23,20,25,21,14,9,0,61,47,37,25,27,22,9,2,0,0,0,-39,-4,-85,-90,-94,-96,-80,-96,-102,-81,-77,-79,-79,-60,-130,65,54,50,70,50,9,10,0,0,0,0,-33,0,-136,-124,-160,0,0,0,0,0,0,0,-220,-209,-310,-110,-255,0,-29988,-29989,-29998,-29999]} 1. d4 {[%emt 0:00:01]} Nf6 {[%emt 0:00:11]} 2. c4 {[%emt 0:00:07]} g6 {[%emt 0:00:10]} 3. Nc3 {[%emt 0:00:07]} d5 {[%emt 0:00:13]} 4. cxd5 {[%emt 0:00:42]} Nxd5 {[%emt 0:00:06]} 5. e4 {[%emt 0:00:15]} Nxc3 {[%emt 0:00:06]} 6. bxc3 {[%emt 0:00:07]} Bg7 {[%emt 0:00:05]} 7. Bc4 {[%emt 0:00:11]} c5 {[%emt 0:00:20]} 8. Ne2 {[%emt 0:00:01]} Nc6 {[%emt 0:00:13]} 9. Be3 {[%emt 0:00:07]} O-O {[%emt 0:00:18]} 10. O-O {[%emt 0:00:02]} Bg4 {[%emt 0:00:42]} 11. f3 {[%emt 0:00:31]} Bd7 {[%emt 0:00:18]} 12. Rb1 {[%emt 0:03:41]} Qc7 {[%emt 0:00:15]} 13. Qd2 {[%emt 0:09:57]} Rad8 {[%emt 0:00:13]} 14. Rfc1 {[%emt 0:00:23]} b6 {[%emt 0:00:06]} 15. Qe1 {[%emt 0:00:12] The position is equal.} Na5 {[%emt 0:21:35]} 16. Bd3 {[%emt 0:00:21]} c4 {[%emt 0:01:27]} (16... e5 $11) 17. Bc2 $14 {[%emt 0:00:12]} e5 {[%emt 0:02:53]} 18. dxe5 {[%emt 0:06:57]} Bxe5 {[%emt 0:00:13]} 19. f4 {[%emt 0:05:36]} Bg7 {[%emt 0:00:30]} 20. f5 {[%emt 0:21:13]} Rfe8 {[%emt 0:21:52]} 21. Qf2 {[%emt 0:08:57]} Nc6 {[%emt 0:16:06]} 22. Nd4 {[%emt 0:08:26]} Ne5 {[%emt 0:04:45]} 23. h3 {[%emt 0:00:53] Repels Ng4} (23. Bg5 $1 $11) 23... Nd3 $17 {[%emt 0:03:21]} 24. Bxd3 {[%emt 0:03:04]} cxd3 {[%emt 0:00:05]} 25. f6 {[%emt 0:18:21]} Bf8 {[%emt 0:00:11]} 26. Bf4 {[%emt 0:00:38]} Qc4 {[%emt 0:07:32]} 27. e5 {[%emt 0:00:49]} Bc5 {[%emt 0:02:41]} 28. Kh1 {[%emt 0:02:02]} Ba4 {[%emt 0:00:04][%cal Oa4c2]} 29. Qh4 {[%emt 0:01:00]} (29. Qg3 $15) 29... Rxd4 $2 {[%emt 0:10:59]} (29... Qxa2 30. Ra1 Qc4 31. e6 $18) (29... d2 $17 30. Bxd2 Rxe5) 30. cxd4 $14 {[%emt 0:00:25]} Qxd4 {[%emt 0:00:03] [#] ...Bc2 is the strong threat.} 31. Rxc5 {[%emt 0:09:21]} Qxc5 {[%emt 0:00:05]} (31... bxc5 32. Qh6) 32. Bd2 {[%emt 0:00:49]} ({Much weaker is} 32. Qh6 Qf8 $15) 32... Bd7 {[%emt 0:06:30]} 33. Bb4 {[%emt 0:00:46]} (33. Qh6 $5 Qf8 $8 34. Qf4 $16) 33... Qxe5 {[%emt 0:01:04] Threatens to win with ...h5.} 34. Re1 {[%emt 0:00:13]} Qh5 {[%emt 0:00:04]} 35. Rxe8+ {[%emt 0:00:12]} Bxe8 $11 {[%emt 0:00:02][%mdl 4096] Endgame. KQB-KQB} 36. Qe4 {[%emt 0:00:22]} (36. Qf4 $11 {keeps the balance.} a5 37. Ba3) 36... Qe2 $17 {[%emt 0:00:40]} 37. Qf4 {[%emt 0:01:05] [#] Qh6 would kill now.} Bc6 $2 {[%emt 0:00:47]} (37... Qxa2 38. Qd6 Qb1+ 39. Kh2) (37... h5 $1 $17 {[%cal Oe8c6] ...Bc6! would now be deadly.} 38. Qd6 Kh7 (38... Qxa2 39. Qf8+ Kh7 40. Qg7#)) 38. Qb8+ $11 {[%emt 0:00:28]} Qe8 {[%emt 0:00:20]} 39. Qf4 {[%emt 0:00:22] Intending Qh6 and mate.} Qe2 {[%emt 0:01:10][%csl Gc6][%cal Re2g2]} 40. Qb8+ {[%emt 0:00:28]} Qe8 {[%emt 0:00:32]} 41. Qd6 {[%emt 0:00:50]} (41. Qf4 $1 $11 Qe2) 41... a5 {[%emt 0:01:32]} 42. Ba3 {[%emt 0:00:31]} (42. Bd2 $142) 42... Bb7 $2 {[%emt 0:00:25]} (42... h5 $19 {[%cal Oc6d5] White must now prevent ...Bd5!} 43. Qxd3 Qe1+ 44. Kh2 Qf2) 43. Qd4 {[%emt 0:00:43]} (43. Qxd3 $17 Qe1+ 44. Kh2 Qe5+ 45. Kg1 Qa1+ (45... Qxf6 46. Qg3 $17) 46. Kh2 Qxf6 47. Qg3) 43... Bc6 $2 {[%emt 0:00:32]} ({Black should try} 43... Qa8 $19 44. Qxd3 Bxg2+ 45. Kg1 h5) 44. Be7 $2 {[%emt 0:00:14][%mdl 8192]} (44. Qd6 $11) 44... Qd7 {[%emt 0:00:24]} 45. Qxb6 {[%emt 0:00:47]} Qxh3+ {[%emt 0:01:20] Weighted Error Value: White=0.50/Black=0.36.  Loses game:     	White=2     	---        Missed win:     	---       	Black=2      Mistake:       	White=5     	Black=3      Inaccurate:     	White=2     	Black=2      OK:         	White=5     	Black=7      Best:        	White=5     	Black=5      Brilliant:      	White=1     	---} 0-1

[Event "Israel-ch Youth U8-18 2024"]
[Site "Kfar Saba"]
[Date "2024.04.21"]
[Round "7.7"]
[White "Zakin, Ilay"]
[Black "Afek, Itay"]
[Result "1-0"]
[ECO "B11"]
[WhiteElo "2178"]
[BlackElo "1816"]
[Annotator "TA"]
[PlyCount "51"]
[EventDate "2024.04.10"]
[EventType "swiss"]
[EventCountry "ISR"]
[SourceTitle "playchess.com"]
[Source "ChessBase"]
[SourceQuality "1"]
[TimeControl "5400+30"]

{[%evp 10,51,15,13,34,36,58,66,66,56,90,79,89,89,84,79,94,94,185,190,231,231,237,229,553,537,573,560,654,212,648,664,664,649,689,659,744,745,739,728,860,864,883,781]} 1. e4 {[%emt 0:00:01]} c6 {[%emt 0:00:04]} 2. Nc3 {[%emt 0:00:04]} d5 {[%emt 0:00:09]} 3. Nf3 {[%emt 0:00:04]} dxe4 {[%emt 0:00:08]} 4. Nxe4 {[%emt 0:00:02]} Nf6 {[%emt 0:00:11]} 5. Qe2 {[%emt 0:00:07]} Nxe4 {[%emt 0:00:07]} 6. Qxe4 {[%emt 0:00:02]} Nd7 {[%emt 0:00:30]} 7. Bc4 {[%emt 0:00:07] Ng5 would now be deadly.} Qc7 {[%emt 0:00:30]} 8. Ng5 {[%emt 0:12:30]} Ne5 {[%emt 0:00:10] And now ...Nxc4 would win. White is slightly better.} 9. Bb3 {[%emt 0:00:52][%cal Od2d4] White has more active pieces.} h6 {[%emt 0:01:35][%cal Bh7h6,Bh6g5][%mdl 32]} 10. d4 $1 {[%emt 0:04:05]} hxg5 {[%emt 0:00:13]} 11. dxe5 {[%emt 0:00:16]} Rh4 {[%emt 0:00:18] [#]} 12. Qe2 {[%emt 0:09:02]} Bf5 {[%emt 0:00:33] [#]} (12... Bg4 $2 13. f3 Be6 14. Bxg5 $18) 13. f3 $1 {[%emt 0:20:10][%cal Og2g4] Hoping for g4!} (13. Bxg5 Re4 14. Be3 Bg4 $11) 13... O-O-O {[%emt 0:13:19]} (13... g4 $16) 14. g4 $18 {[%emt 0:14:34]} (14. Bxf7 e6 15. Bxg5 Rd5 $19) 14... Bg6 {[%emt 0:09:30]} 15. Bxg5 {[%emt 0:01:17]} Rh3 {[%emt 0:05:57]} 16. O-O {[%emt 0:05:42] aiming for Rad1.} Rd4 {[%emt 0:12:54]} (16... e6 {is a better chance.} 17. Kg2 (17. Bxd8 Qxd8 18. Kg2 Qh4 $18) 17... Rh8 18. Bxd8 Qxd8) 17. Rad1 {[%emt 0:03:05]} Rxd1 {[%emt 0:10:17]} 18. Rxd1 {[%emt 0:00:45]} e6 {[%emt 0:00:37]} 19. Rd8+ {[%emt 0:03:01]} Qxd8 {[%emt 0:00:01]} 20. Bxd8 {[%emt 0:00:07] White is clearly winning.} Kxd8 {[%emt 0:00:02]} 21. Kg2 {[%emt 0:00:27]} Rh8 {[%emt 0:00:42]} 22. Qe3 {[%emt 0:00:36]} Be7 {[%emt 0:02:27]} 23. Qxa7 {[%emt 0:01:48]} Kc7 {[%emt 0:00:19] Prevents Qb8+} 24. a4 {[%emt 0:02:37][%cal Ba2a4,Ba4a5][%mdl 32]} Rd8 {[%emt 0:00:51]} 25. a5 {[%emt 0:02:23]} Bg5 {[%emt 0:02:18]} 26. Qb6+ {[%emt 0:00:52] Black got outplayed after the opening.   Weighted Error Value: White=0.30/Black=0.51.  Mistake:       	---       	Black=2      Inaccurate:     	---       	Black=2      OK:         	White=7     	Black=5      Strong:       	White=2     	---} 1-0

[Event "Israel-ch Youth U8-18 2024"]
[Site "Kfar Saba"]
[Date "2024.04.21"]
[Round "7.8"]
[White "Birka, Elia"]
[Black "Shefer, Uri"]
[Result "0-1"]
[ECO "B50"]
[WhiteElo "1954"]
[BlackElo "1991"]
[Annotator "TA"]
[PlyCount "46"]
[EventDate "2024.04.10"]
[EventType "swiss"]
[EventCountry "ISR"]
[SourceTitle "playchess.com"]
[Source "ChessBase"]
[SourceQuality "1"]
[TimeControl "5400+30"]

{[%evp 10,46,-5,0,35,32,70,50,46,54,47,56,48,0,-6,-95,0,-30,-23,-47,0,0,37,-12,-15,-13,-10,-26,-24,-6,-19,-22,-35,-45,-38,-154,-130,-362,-351]} 1. e4 {[%emt 0:00:55]} c5 {[%emt 0:00:01]} 2. Nf3 {[%emt 0:00:18]} d6 {[%emt 0:00:04]} 3. Nc3 {[%emt 0:00:19]} Nf6 {[%emt 0:01:04]} 4. e5 {[%emt 0:00:27]} dxe5 {[%emt 0:00:32]} 5. Nxe5 {[%emt 0:00:08]} a6 {[%emt 0:06:17]} 6. a4 {[%emt 0:00:10]} Nbd7 {[%emt 0:01:11]} 7. Nc4 {[%emt 0:00:18]} g6 {[%emt 0:07:51]} 8. d4 {[%emt 0:00:44]} Bg7 {[%emt 0:03:08] White is slightly better.} 9. dxc5 {[%emt 0:06:47]} O-O {[%emt 0:05:15][%cal Od8c7]} 10. Be3 {[%emt 0:06:05]} Qc7 {[%emt 0:08:19]} 11. b4 {[%emt 0:08:43]} (11. Qd4 $14) 11... Rd8 $11 {[%emt 0:04:44][%cal Od7c5]} 12. Qe2 {[%emt 0:14:58] [#]} (12. Qc1 $11 {remains equal.}) 12... Nf8 {[%emt 0:17:23]} ({Black should try} 12... Ne5 $1 $17 {Hoping for ...Bg4.} 13. Nb6 Rb8) 13. Nb6 {[%emt 0:06:25]} Rb8 {[%emt 0:01:43]} 14. Rd1 {[%emt 0:03:20]} Bg4 {[%emt 0:03:50]} (14... Bf5 $1 $15) 15. f3 {[%emt 0:01:36]} Be6 {[%emt 0:01:00][%cal Oa6a5]} (15... Bf5 $5) 16. g3 {[%emt 0:05:18]} (16. Bd4 $14 {might be stronger.}) 16... Rxd1+ {[%emt 0:01:25]} 17. Nxd1 {[%emt 0:04:41] [#] Black must now prevent Bf4.} ({Much worse is} 17. Qxd1 Rd8 18. Qe2 N8d7 $17) 17... Rd8 {[%emt 0:03:21]} 18. Bg2 {[%emt 0:00:51]} Nd5 {[%emt 0:02:42] Prevents Bf4.} 19. Nxd5 {[%emt 0:00:21]} Bxd5 {[%emt 0:00:04]} 20. O-O {[%emt 0:03:00]} a5 {[%emt 0:03:25]} 21. c3 {[%emt 0:21:58]} Bb3 {[%emt 0:03:36] Threatens to win with ...Qe5.} 22. Nb2 {[%emt 0:03:28]} ({White should play} 22. Nf2 $15) 22... Bxc3 $17 {[%emt 0:01:14] Black is more active.} 23. Rc1 $2 {[%emt 0:00:39]} (23. b5 $17) 23... axb4 {[%emt 0:23:51] Weighted Error Value: White=0.49/Black=0.15 (very precise) .  Loses game:     	White=1     	---        Mistake:       	White=4     	Black=2      Inaccurate:     	White=1     	Black=2      OK:         	White=4     	Black=9      Best:        	White=1     	Black=3} ({Not} 23... Bxb4 24. Nd3 $19) 0-1

[Event "Israel-ch Youth U8-18 2024"]
[Site "Kfar Saba"]
[Date "2024.04.21"]
[Round "7.9"]
[White "Magen, Ofek"]
[Black "Sternfeld, Tomer"]
[Result "1-0"]
[ECO "D24"]
[WhiteElo "1936"]
[BlackElo "1866"]
[Annotator "TA"]
[PlyCount "101"]
[EventDate "2024.04.10"]
[EventType "swiss"]
[EventCountry "ISR"]
[SourceTitle "playchess.com"]
[Source "ChessBase"]
[SourceQuality "1"]
[TimeControl "5400+30"]

{[%evp 9,101,20,53,37,44,43,47,47,44,50,52,45,62,12,23,-7,0,-31,0,-15,0,-12,19,18,26,11,74,70,69,63,84,83,78,59,81,74,90,22,29,18,131,142,144,79,80,80,66,47,66,0,65,64,70,59,86,79,86,29,15,20,24,6,24,32,122,113,154,150,146,134,251,250,238,229,229,234,246,237,234,225,225,233,306,306,304,297,280,208,258,258,517,485,460,445]} 1. d4 {[%emt 0:00:19]} Nf6 {[%emt 0:00:07]} 2. c4 {[%emt 0:00:02]} e6 {[%emt 0:00:04]} 3. Nf3 {[%emt 0:00:04]} d5 {[%emt 0:00:06]} 4. Nc3 {[%emt 0:04:52]} dxc4 {[%emt 0:00:35]} 5. e4 {[%emt 0:01:28][%cal Be2e4,Be4e5][%mdl 32]} b5 {[%emt 0:00:17]} 6. e5 {[%emt 0:03:11]} Nd5 {[%emt 0:00:11]} 7. Nxb5 {[%emt 0:00:59]} Nb6 {[%emt 0:00:30]} 8. Be2 {[%emt 0:00:45] White is slightly better.} Nc6 {[%emt 0:00:29]} 9. O-O {[%emt 0:00:42]} Be7 {[%emt 0:00:27]} 10. Be3 {[%emt 0:01:52]} O-O {[%emt 0:00:55]} 11. Rc1 {[%emt 0:00:51]} (11. Nc3 $14) 11... Bb7 {[%emt 0:01:40]} 12. Re1 {[%emt 0:12:07][%cal Ob5c3]} Rb8 {[%emt 0:11:57]} 13. h3 {[%emt 0:17:57][%cal Ob5c3]} (13. Bxc4 $2 Nxc4 14. Rxc4 Na5 15. Rxc7 Bxf3 16. Qxf3 Rxb5 $17) 13... Qd7 {[%emt 0:10:49]} 14. Nc3 {[%emt 0:07:13]} Nb4 {[%emt 0:10:46]} 15. Nd2 {[%emt 0:02:06]} Nd3 {[%emt 0:03:18]} 16. Bxd3 {[%emt 0:00:26]} cxd3 {[%emt 0:00:01]} 17. Nde4 {[%emt 0:00:13]} Ba6 {[%emt 0:08:17]} (17... Nc4 $11) 18. b3 $16 {[%emt 0:09:00]} Kh8 {[%emt 0:12:31]} 19. Qh5 {[%emt 0:01:28]} (19. Nc5 {simplifies} Bxc5 20. dxc5 Nd5 21. Nxd5 Qxd5 22. c6) 19... f5 {[%emt 0:16:40]} 20. exf6 {[%emt 0:01:06]} gxf6 {[%emt 0:00:08]} 21. Red1 {[%emt 0:14:25] White is more active.} Qe8 {[%emt 0:09:02]} 22. Qxe8 {[%emt 0:03:42]} Rbxe8 {[%emt 0:00:21]} 23. Bf4 {[%emt 0:00:47]} (23. Nc5 $16 Bxc5 24. dxc5) 23... Ba3 $11 {[%emt 0:05:18]} 24. Rb1 {[%emt 0:00:19][%cal Oe4c5]} e5 {[%emt 0:01:44]} (24... Nd5 $11 25. Nxd5 exd5) 25. dxe5 $16 {[%emt 0:01:17]} fxe5 {[%emt 0:00:01]} 26. Bg5 {[%emt 0:00:28]} (26. Bh6 $142 {[%cal Ob3b4] b4! is the strong threat.} Rf7 27. b4) 26... Bb4 {[%emt 0:00:47]} 27. Be3 {[%emt 0:01:23]} Rf7 {[%emt 0:02:09]} 28. Rbc1 {[%emt 0:05:56]} Ba3 {[%emt 0:01:17]} 29. Rb1 {[%emt 0:00:04] Threatens to win with Bc5.} Bb4 {[%emt 0:00:58]} 30. Na4 {[%emt 0:01:08] Excellent horsemanship.} Nd5 {[%emt 0:02:38]} 31. Nac5 {[%emt 0:01:27]} Bxc5 {[%emt 0:00:35]} 32. Nxc5 {[%emt 0:00:05]} Bc8 {[%emt 0:00:07]} ({Not} 32... Nxe3 $2 33. fxe3 Rf6 34. Nxd3 $18) 33. Rxd3 {[%emt 0:00:15]} (33. Nxd3 $16 Rg7 (33... Nc3 $2 34. Nxe5 Rf6 35. Bd4 $18) 34. Rbc1 (34. Bxa7 Nc3 $11)) 33... Bf5 $11 {[%emt 0:00:31] [#]} 34. Rxd5 {[%emt 0:00:05]} Bxb1 {[%emt 0:00:01]} 35. a3 {[%emt 0:00:18]} a5 {[%emt 0:01:15]} 36. Bd2 {[%emt 0:00:53]} Rfe7 {[%emt 0:01:01] White stays focused until the end.} ({Better is} 36... Rf6 $14) 37. Bxa5 $16 {[%emt 0:00:51]} e4 {[%emt 0:00:41]} 38. Bc3+ {[%emt 0:01:11]} Kg8 {[%emt 0:00:06]} 39. Rg5+ {[%emt 0:04:31]} Kf7 {[%emt 0:00:12]} (39... Kf8 $16 {might work better.}) 40. Rg7+ $18 {[%emt 0:00:21]} Kf8 {[%emt 0:00:05]} 41. Nd7+ {[%emt 0:00:14]} Rxd7 {[%emt 0:00:06]} 42. Rxd7 {[%emt 0:00:03][%mdl 4096] Endgame. KRB-KRB} e3 {[%emt 0:00:07]} 43. fxe3 {[%emt 0:00:05]} Rxe3 {[%emt 0:00:04]} 44. Rxc7 {[%emt 0:00:07]} Ke8 {[%emt 0:00:08]} 45. b4 {[%emt 0:00:20]} Be4 {[%emt 0:00:23]} 46. Kf2 {[%emt 0:00:33] Prevents Re2+} Rd3 {[%emt 0:00:13]} 47. Rc5 {[%emt 0:00:07]} Kd7 {[%emt 0:00:29]} 48. Rc4 {[%emt 0:00:05]} Bd5 {[%emt 0:00:15]} 49. Rd4 {[%emt 0:00:16]} Rxc3 {[%emt 0:00:10] [#]} (49... Rxd4 50. Bxd4 Bc6) 50. Rxd5+ {[%emt 0:00:03]} Ke6 {[%emt 0:00:09]} 51. Ra5 {[%emt 0:08:00] Weighted Error Value: White=0.14 (very precise) /Black=0.31.  Mistake:       	White=4     	Black=5      Inaccurate:     	White=2     	Black=5      OK:         	White=16    	Black=14     Best:        	White=8     	Black=2} 1-0

[Event "Israel-ch Youth U8-18 2024"]
[Site "Kfar Saba"]
[Date "2024.04.21"]
[Round "7.10"]
[White "Shilon Rahav, Eliran"]
[Black "Gurevich, Neria"]
[Result "1-0"]
[ECO "B30"]
[WhiteElo "2116"]
[BlackElo "1844"]
[Annotator "TA"]
[PlyCount "42"]
[EventDate "2024.04.10"]
[EventType "swiss"]
[EventCountry "ISR"]
[SourceTitle "playchess.com"]
[Source "ChessBase"]
[SourceQuality "1"]
[TimeControl "5400+30"]

{[%evp 10,42,9,16,29,6,16,8,8,14,0,0,10,0,9,11,45,33,89,81,214,208,206,215,627,465,978,804,1190,1258,1218,1181,1667,1567,29999]} 1. e4 {[%emt 0:00:03]} c5 {[%emt 0:00:08]} 2. Nc3 {[%emt 0:00:10]} Nc6 {[%emt 0:00:15]} 3. Bb5 {[%emt 0:00:18]} Nd4 {[%emt 0:00:17]} 4. Nf3 {[%emt 0:00:22]} e6 {[%emt 0:00:48]} 5. O-O {[%emt 0:00:38]} a6 {[%emt 0:00:37]} 6. Bd3 {[%emt 0:00:08]} Nc6 {[%emt 0:00:41]} 7. b3 {[%emt 0:01:24]} d6 {[%emt 0:00:47]} 8. Bb2 {[%emt 0:03:13]} Nf6 {[%emt 0:01:14] The position is equal.} 9. Re1 {[%emt 0:00:59][%cal Bf1e1,Be1e5,Be5g5,Bg5g3][%mdl 32]} Be7 {[%emt 0:01:43]} 10. e5 {[%emt 0:01:24]} dxe5 {[%emt 0:00:32]} 11. Nxe5 {[%emt 0:00:11]} Nxe5 {[%emt 0:02:15]} 12. Rxe5 {[%emt 0:00:03]} O-O {[%emt 0:01:47]} 13. Qf3 {[%emt 0:02:20]} Re8 {[%emt 0:07:14]} (13... Ra7 $14) 14. Rae1 $16 {[%emt 0:06:32] White has more active pieces.} Rb8 {[%emt 0:06:07] [#] A mistake that costs the game.} (14... g6 $16) 15. Rg5 $1 $18 {[%emt 0:04:05]} g6 {[%emt 0:03:49] [#]} 16. h4 $1 {[%emt 0:06:22][%cal Oh4h5] aiming for h5!} h6 $2 {[%emt 0:17:52]} (16... Nd7) 17. Rg3 {[%emt 0:01:35] White is clearly winning.} Bd6 {[%emt 0:12:47] [#]} (17... b5 $142 18. Ne4 Bb7 19. Nxf6+ Bxf6) 18. Nd5 $1 {[%emt 0:09:15][%mdl 512]} exd5 {[%emt 0:09:47]} (18... Nxd5 19. Bxg6) 19. Rxe8+ {[%emt 0:00:35]} Qxe8 {[%emt 0:00:46]} 20. Qxf6 {[%emt 0:00:14][%csl Gb2][%cal Rf6h8]} Qe1+ {[%emt 0:00:09]} 21. Bf1 {[%emt 0:00:06]} Bf8 {[%emt 0:31:25] Repels Qg7+.   Weighted Error Value: White=0.19 (very precise) /Black=0.76.  Mistake:       	---       	Black=4      Inaccurate:     	---       	Black=2      OK:         	White=5     	Black=2      Best:        	---       	Black=1      Strong:       	White=2     	---} 1-0